[Event "Early-Titled-Tuesday-Blitz-March-05-2024"]
[Site "Chess.com"]
[Date "2024.03.05"]
[Round "1"]
[White "Rikikits"]
[Black "balack95"]
[Result "1-0"]
[WhiteElo "2831"]
[BlackElo "2460"]
[TimeControl "180+1"]
[EndTime "8:08:14 PST"]
[Termination "Rikikits won by resignation"]

1. d3 {[%clk 0:02:53.5]} 1... d5 {[%clk 0:02:58.4]} 2. Nf3 {[%clk 0:02:53.5]}
2... Nd7 {[%clk 0:02:54.6]} 3. Nbd2 {[%clk 0:02:54.4]} 3... e5 {[%clk
0:02:53.3]} 4. e4 {[%clk 0:02:53.9]} 4... c6 {[%clk 0:02:53.9]} 5. Be2 {[%clk
0:02:53]} 5... Ngf6 {[%clk 0:02:51]} 6. O-O {[%clk 0:02:53.5]} 6... Be7 {[%clk
0:02:46.4]} 7. c3 {[%clk 0:02:53.9]} 7... O-O {[%clk 0:02:46.1]} 8. Qc2 {[%clk
0:02:52.3]} 8... Qc7 {[%clk 0:02:44.6]} 9. a4 {[%clk 0:02:51.6]} 9... Re8 {[%clk
0:02:43.6]} 10. a5 {[%clk 0:02:51.3]} 10... Nf8 {[%clk 0:02:42.4]} 11. Re1
{[%clk 0:02:50]} 11... Ng6 {[%clk 0:02:42.8]} 12. Bf1 {[%clk 0:02:50.1]} 12...
h6 {[%clk 0:02:41.4]} 13. b4 {[%clk 0:02:49.2]} 13... Bg4 {[%clk 0:02:37.4]} 14.
Bb2 {[%clk 0:02:48.2]} 14... Rad8 {[%clk 0:02:36.4]} 15. h3 {[%clk 0:02:47.6]}
15... Bc8 {[%clk 0:02:35.6]} 16. g3 {[%clk 0:02:43.1]} 16... Bf8 {[%clk
0:02:35.1]} 17. Bg2 {[%clk 0:02:42.7]} 17... h5 {[%clk 0:02:29.5]} 18. h4 {[%clk
0:02:37.3]} 18... Bg4 {[%clk 0:02:28.1]} 19. Nf1 {[%clk 0:02:36.9]} 19... Qc8
{[%clk 0:02:27]} 20. Ne3 {[%clk 0:02:32.6]} 20... Bh3 {[%clk 0:02:27.1]} 21.
Bxh3 {[%clk 0:02:30]} 21... Qxh3 {[%clk 0:02:25.9]} 22. Ng5 {[%clk 0:02:30.6]}
22... Qc8 {[%clk 0:02:25.2]} 23. Nf5 {[%clk 0:02:26.5]} 23... c5 {[%clk
0:02:10.5]} 24. b5 {[%clk 0:02:18.4]} 24... c4 {[%clk 0:02:10.5]} 25. dxc4
{[%clk 0:02:15.9]} 25... dxe4 {[%clk 0:02:10.6]} 26. Ne3 {[%clk 0:02:14.1]}
26... Ng4 {[%clk 0:02:01]} 27. Qxe4 {[%clk 0:02:10.8]} 27... Nxe3 {[%clk
0:02:00.2]} 28. Rxe3 {[%clk 0:02:10.4]} 28... Bc5 {[%clk 0:01:59.4]} 29. Rf3
{[%clk 0:02:10.3]} 29... Rd2 {[%clk 0:01:54.8]} 30. Rxf7 {[%clk 0:01:56.6]}
30... Qg4 {[%clk 0:01:11.9]} 31. Qxg4 {[%clk 0:01:56.4]} 31... hxg4 {[%clk
0:01:12.1]} 32. Ba3 {[%clk 0:01:56.9]} 32... Bxa3 {[%clk 0:01:09.6]} 33. Rxa3
{[%clk 0:01:57.8]} 33... e4 {[%clk 0:01:09.3]} 34. Ra1 {[%clk 0:01:32]} 34... e3
{[%clk 0:01:00.1]} 35. fxe3 {[%clk 0:01:22.9]} 35... Rxe3 {[%clk 0:01:00.4]} 36.
Rf2 {[%clk 0:01:18.3]} 36... Rxg3+ {[%clk 0:00:59.2]} 37. Kh2 {[%clk 0:01:16.7]}
37... Rgd3 {[%clk 0:00:51.2]} 38. Rxd2 {[%clk 0:01:16.1]} 38... Rxd2+ {[%clk
0:00:52.1]} 39. Kg3 {[%clk 0:01:16.4]} 39... Rd3+ {[%clk 0:00:52.2]} 40. Kxg4
{[%clk 0:01:16.3]} 40... Ne5+ {[%clk 0:00:51.7]} 41. Kf5 {[%clk 0:01:15.9]}
41... Nxc4 {[%clk 0:00:52.2]} 42. a6 {[%clk 0:01:13.8]} 42... bxa6 {[%clk
0:00:48.5]} 43. Rxa6 {[%clk 0:01:13.7]} 43... Nd6+ {[%clk 0:00:49]} 44. Kg6
{[%clk 0:01:11]} 44... Nxb5 {[%clk 0:00:47.7]} 45. Re6 {[%clk 0:01:10.2]} 45...
Rd6 {[%clk 0:00:48.1]} 46. c4 {[%clk 0:01:09.4]} 46... Rxe6+ {[%clk 0:00:47.8]}
47. Nxe6 {[%clk 0:01:10.3]} 47... Nd6 {[%clk 0:00:48.3]} 48. c5 {[%clk
0:01:10.4]} 48... Nc8 {[%clk 0:00:43.9]} 49. Nxg7 {[%clk 0:01:10.4]} 49... a5
{[%clk 0:00:44.6]} 50. Nf5 {[%clk 0:01:09.4]} 50... a4 {[%clk 0:00:45.2]} 51.
Kf6 {[%clk 0:00:53.6]} 51... a3 {[%clk 0:00:41.6]} 52. Nd4 {[%clk 0:00:53.6]}
52... Kh7 {[%clk 0:00:37.4]} 53. Ke6 {[%clk 0:00:47]} 53... a2 {[%clk 0:00:36]}
54. Nc2 {[%clk 0:00:45.9]} 54... Na7 {[%clk 0:00:34.6]} 55. Kd5 {[%clk
0:00:43.1]} 55... Kh6 {[%clk 0:00:34.6]} 56. Kc4 {[%clk 0:00:43.7]} 56... Kh5
{[%clk 0:00:34.5]} 57. Kb3 {[%clk 0:00:44.4]} 57... Kxh4 {[%clk 0:00:35.2]} 58.
Kxa2 {[%clk 0:00:44.8]} 58... Kg5 {[%clk 0:00:36.1]} 59. Kb3 {[%clk 0:00:44.6]}
59... Kf6 {[%clk 0:00:36.7]} 60. Kc4 {[%clk 0:00:45.1]} 60... Ke5 {[%clk
0:00:36.7]} 61. Nd4 {[%clk 0:00:42.7]} 61... Ke4 {[%clk 0:00:31.8]} 62. Nc2
{[%clk 0:00:36.1]} 62... Ke5 {[%clk 0:00:32.1]} 63. Nb4 {[%clk 0:00:36.3]} 63...
Ke4 {[%clk 0:00:30.7]} 64. Na2 {[%clk 0:00:35]} 64... Ke5 {[%clk 0:00:30.9]} 65.
Nc3 {[%clk 0:00:35.6]} 65... Nc6 {[%clk 0:00:28.5]} 66. Kb5 {[%clk 0:00:33.9]}
66... Nd4+ {[%clk 0:00:28.8]} 67. Kb6 {[%clk 0:00:34.1]} 67... Ke6 {[%clk
0:00:29.2]} 68. Nb5 {[%clk 0:00:33.6]} 68... Kd7 {[%clk 0:00:29.4]} 69. Nxd4
{[%clk 0:00:33.3]} 69... Kc8 {[%clk 0:00:28.7]} 70. c6 {[%clk 0:00:33.3]} 70...
Kb8 {[%clk 0:00:28.9]} 71. Nb5 {[%clk 0:00:33.4]} 71... Ka8 {[%clk 0:00:28.8]}
72. Ka6 {[%clk 0:00:27.8]} 72... Kb8 {[%clk 0:00:28.8]} 73. c7+ {[%clk
0:00:28.5]} 73... Kc8 {[%clk 0:00:28]} 74. Kb6 {[%clk 0:00:28]} 1-0

[Event "Early-Titled-Tuesday-Blitz-March-05-2024"]
[Site "Chess.com"]
[Date "2024.03.05"]
[Round "1"]
[White "ansko1999"]
[Black "Bulatova_Kamaliya"]
[Result "1-0"]
[WhiteElo "2729"]
[BlackElo "2417"]
[TimeControl "180+1"]
[EndTime "8:08:16 PST"]
[Termination "ansko1999 won by resignation"]

1. Nf3 {[%clk 0:02:59.6]} 1... Nf6 {[%clk 0:02:59.4]} 2. c4 {[%clk 0:02:57.9]}
2... e6 {[%clk 0:02:59.2]} 3. g3 {[%clk 0:02:55.2]} 3... d5 {[%clk 0:02:59.7]}
4. Bg2 {[%clk 0:02:55.2]} 4... dxc4 {[%clk 0:02:59.4]} 5. Qa4+ {[%clk 0:02:53]}
5... Bd7 {[%clk 0:02:56]} 6. Qxc4 {[%clk 0:02:51.6]} 6... Bc6 {[%clk 0:02:55.9]}
7. O-O {[%clk 0:02:47.5]} 7... Be7 {[%clk 0:02:51.1]} 8. Qc2 {[%clk 0:02:45.7]}
8... O-O {[%clk 0:02:48.2]} 9. Nc3 {[%clk 0:02:39.7]} 9... Na6 {[%clk
0:02:48.3]} 10. d4 {[%clk 0:02:32.9]} 10... Nb4 {[%clk 0:02:41.1]} 11. Qd1
{[%clk 0:02:29.4]} 11... Nbd5 {[%clk 0:02:41.2]} 12. Ne5 {[%clk 0:02:14.8]}
12... Nxc3 {[%clk 0:02:27.9]} 13. Nxc6 {[%clk 0:02:12.6]} 13... Nxd1 {[%clk
0:02:26.9]} 14. Nxd8 {[%clk 0:02:11.8]} 14... Raxd8 {[%clk 0:02:25]} 15. Rxd1
{[%clk 0:02:08.7]} 15... c5 {[%clk 0:02:18.5]} 16. Be3 {[%clk 0:02:01.6]} 16...
cxd4 {[%clk 0:01:54.4]} 17. Bxd4 {[%clk 0:02:00.6]} 17... b6 {[%clk 0:01:54.7]}
18. a4 {[%clk 0:01:53.1]} 18... Bb4 {[%clk 0:01:53.3]} 19. Rac1 {[%clk
0:01:47.3]} 19... Ne8 {[%clk 0:01:10.8]} 20. Be5 {[%clk 0:01:30.8]} 20... Rxd1+
{[%clk 0:00:55.7]} 21. Rxd1 {[%clk 0:01:31.7]} 21... f6 {[%clk 0:00:55.9]} 22.
Bb8 {[%clk 0:01:27.4]} 22... Rf7 {[%clk 0:00:50.8]} 23. Rd8 {[%clk 0:01:24.4]}
23... Kf8 {[%clk 0:00:46.3]} 24. Bc6 {[%clk 0:01:24.4]} 24... Re7 {[%clk
0:00:46.2]} 25. Bxe8 {[%clk 0:01:05.6]} 25... Rxe8 {[%clk 0:00:43]} 26. Rxe8+
{[%clk 0:01:06.5]} 26... Kxe8 {[%clk 0:00:43.2]} 27. Bxa7 {[%clk 0:01:07.3]}
27... Bc5 {[%clk 0:00:35.9]} 28. a5 {[%clk 0:01:04.5]} 28... Kd7 {[%clk
0:00:35.9]} 29. Bxb6 {[%clk 0:01:01.6]} 29... Bb4 {[%clk 0:00:32.7]} 30. Kf1
{[%clk 0:00:52.7]} 30... Kc6 {[%clk 0:00:30.5]} 31. e4 {[%clk 0:00:51.1]} 31...
f5 {[%clk 0:00:24.6]} 32. Ke2 {[%clk 0:00:48.2]} 32... g6 {[%clk 0:00:18.7]} 33.
Kd3 {[%clk 0:00:46.4]} 33... e5 {[%clk 0:00:16.9]} 34. exf5 {[%clk 0:00:34.6]}
34... gxf5 {[%clk 0:00:17.8]} 35. f3 {[%clk 0:00:34.5]} 35... Be1 {[%clk
0:00:16.5]} 36. Kc4 {[%clk 0:00:29.8]} 36... h5 {[%clk 0:00:13]} 37. b4 {[%clk
0:00:28.9]} 37... h4 {[%clk 0:00:11.5]} 38. gxh4 {[%clk 0:00:25.7]} 38... Bxh4
{[%clk 0:00:12.4]} 39. b5+ {[%clk 0:00:25.4]} 39... Kb7 {[%clk 0:00:12.5]} 40.
Bc5 {[%clk 0:00:22.8]} 40... e4 {[%clk 0:00:11.4]} 41. fxe4 {[%clk 0:00:21.8]}
41... fxe4 {[%clk 0:00:11.9]} 42. a6+ {[%clk 0:00:19.8]} 42... Ka8 {[%clk
0:00:11.1]} 43. Be3 {[%clk 0:00:14.9]} 43... Bf6 {[%clk 0:00:05.8]} 44. Kd5
{[%clk 0:00:14.5]} 44... Bd8 {[%clk 0:00:05]} 45. Kxe4 {[%clk 0:00:14.4]} 45...
Bc7 {[%clk 0:00:05.7]} 46. h4 {[%clk 0:00:13.4]} 46... Bd8 {[%clk 0:00:05.6]}
47. h5 {[%clk 0:00:13.5]} 47... Bf6 {[%clk 0:00:05.4]} 48. Kd5 {[%clk
0:00:13.8]} 48... Bg7 {[%clk 0:00:02.7]} 49. Kc6 {[%clk 0:00:13.8]} 49... Bf6
{[%clk 0:00:01.5]} 50. b6 {[%clk 0:00:14.1]} 50... Bd4 {[%clk 0:00:01.2]} 51.
Bxd4 {[%clk 0:00:13.3]} 51... Kb8 {[%clk 0:00:01.5]} 52. h6 {[%clk 0:00:10.5]}
52... Kc8 {[%clk 0:00:01]} 53. b7+ {[%clk 0:00:10.6]} 53... Kd8 {[%clk
0:00:01.7]} 1-0

[Event "Early-Titled-Tuesday-Blitz-March-05-2024"]
[Site "Chess.com"]
[Date "2024.03.05"]
[Round "1"]
[White "Crazy_girl99"]
[Black "SpeedofLight0"]
[Result "1/2-1/2"]
[WhiteElo "2529"]
[BlackElo "3073"]
[TimeControl "180+1"]
[EndTime "8:08:18 PST"]
[Termination "Game drawn by repetition"]

1. e4 {[%clk 0:02:58.9]} 1... Nc6 {[%clk 0:02:59.9]} 2. Nf3 {[%clk 0:02:55.7]}
2... d6 {[%clk 0:02:59.3]} 3. Bb5 {[%clk 0:02:56.2]} 3... Nf6 {[%clk 0:02:58.4]}
4. Nc3 {[%clk 0:02:55.8]} 4... a6 {[%clk 0:02:57.5]} 5. Ba4 {[%clk 0:02:55.1]}
5... g6 {[%clk 0:02:56.4]} 6. d4 {[%clk 0:02:54.9]} 6... b5 {[%clk 0:02:55.9]}
7. Bb3 {[%clk 0:02:54.6]} 7... Bg7 {[%clk 0:02:54.7]} 8. h3 {[%clk 0:02:53.9]}
8... O-O {[%clk 0:02:53.8]} 9. a3 {[%clk 0:02:51.3]} 9... Bb7 {[%clk 0:02:52.3]}
10. Qe2 {[%clk 0:02:45]} 10... e5 {[%clk 0:02:50.5]} 11. dxe5 {[%clk 0:02:38.8]}
11... dxe5 {[%clk 0:02:51.4]} 12. Bg5 {[%clk 0:02:37.7]} 12... Nd4 {[%clk
0:02:50.5]} 13. Nxd4 {[%clk 0:02:33.3]} 13... exd4 {[%clk 0:02:51.3]} 14. Nd5
{[%clk 0:02:33.2]} 14... Re8 {[%clk 0:02:41.7]} 15. Nxf6+ {[%clk 0:02:03.2]}
15... Bxf6 {[%clk 0:02:41.1]} 16. Bxf6 {[%clk 0:02:03.7]} 16... Qxf6 {[%clk
0:02:41.8]} 17. f3 {[%clk 0:02:04.3]} 17... c5 {[%clk 0:02:27.4]} 18. O-O {[%clk
0:01:55.9]} 18... c4 {[%clk 0:02:26.5]} 19. Ba2 {[%clk 0:01:56.4]} 19... Rad8
{[%clk 0:02:25.4]} 20. Rad1 {[%clk 0:01:55.8]} 20... Qe5 {[%clk 0:02:20.9]} 21.
Qf2 {[%clk 0:01:52]} 21... Re6 {[%clk 0:02:02.5]} 22. b3 {[%clk 0:01:51.3]}
22... Rc6 {[%clk 0:01:50.6]} 23. bxc4 {[%clk 0:01:47.8]} 23... bxc4 {[%clk
0:01:51.4]} 24. Rb1 {[%clk 0:01:44.2]} 24... Bc8 {[%clk 0:01:50.1]} 25. Rb4
{[%clk 0:01:43.2]} 25... Be6 {[%clk 0:01:48.9]} 26. Rd1 {[%clk 0:01:38.4]} 26...
a5 {[%clk 0:01:37.6]} 27. Rb7 {[%clk 0:01:34.8]} 27... Qc5 {[%clk 0:01:34.6]}
28. f4 {[%clk 0:00:59.1]} 28... Qxa3 {[%clk 0:01:25.6]} 29. f5 {[%clk
0:00:59.2]} 29... gxf5 {[%clk 0:00:57.2]} 30. exf5 {[%clk 0:00:54.1]} 30... Bc8
{[%clk 0:00:54.8]} 31. Ra7 {[%clk 0:00:41.6]} 31... Qc5 {[%clk 0:00:37.2]} 32.
f6 {[%clk 0:00:33]} 32... Qg5 {[%clk 0:00:31.1]} 33. Re1 {[%clk 0:00:21.7]}
33... Qxf6 {[%clk 0:00:29.7]} 34. Qg3+ {[%clk 0:00:18.5]} 34... Qg6 {[%clk
0:00:28.9]} 35. Qh4 {[%clk 0:00:16.9]} 35... Rcd6 {[%clk 0:00:24.4]} 36. Rxa5
{[%clk 0:00:16.9]} 36... Be6 {[%clk 0:00:24.1]} 37. Rg5 {[%clk 0:00:16.8]} 37...
Rc8 {[%clk 0:00:16.4]} 38. Rxg6+ {[%clk 0:00:17.1]} 38... hxg6 {[%clk
0:00:17.3]} 39. Qf4 {[%clk 0:00:17.4]} 39... Rd7 {[%clk 0:00:15.5]} 40. Rd1
{[%clk 0:00:17.9]} 40... Rcd8 {[%clk 0:00:14.3]} 41. Kf2 {[%clk 0:00:17.6]}
41... Bf5 {[%clk 0:00:13.3]} 42. Bxc4 {[%clk 0:00:16.6]} 42... Bxc2 {[%clk
0:00:13.9]} 43. Rd2 {[%clk 0:00:17.3]} 43... Bf5 {[%clk 0:00:14.3]} 44. Kg1
{[%clk 0:00:17.5]} 44... d3 {[%clk 0:00:13.7]} 45. g4 {[%clk 0:00:17.8]} 45...
Rd4 {[%clk 0:00:14.4]} 46. Qe3 {[%clk 0:00:16]} 46... Bxg4 {[%clk 0:00:12.3]}
47. Bxf7+ {[%clk 0:00:15.3]} 47... Kxf7 {[%clk 0:00:12.9]} 48. hxg4 {[%clk
0:00:15.1]} 48... Rxg4+ {[%clk 0:00:13.8]} 49. Kf1 {[%clk 0:00:14.5]} 49... Rd5
{[%clk 0:00:12]} 50. Rxd3 {[%clk 0:00:14.2]} 50... Rxd3 {[%clk 0:00:11.8]} 51.
Qxd3 {[%clk 0:00:14.5]} 51... Rf4+ {[%clk 0:00:12.4]} 52. Kg2 {[%clk 0:00:14.8]}
52... Rf5 {[%clk 0:00:13.3]} 53. Qd7+ {[%clk 0:00:14.8]} 53... Kf6 {[%clk
0:00:13.9]} 54. Qd8+ {[%clk 0:00:15.5]} 54... Kg7 {[%clk 0:00:14.5]} 55. Qd7+
{[%clk 0:00:16.1]} 55... Kg8 {[%clk 0:00:15]} 56. Qd8+ {[%clk 0:00:16.2]} 56...
Kg7 {[%clk 0:00:15.4]} 57. Qe7+ {[%clk 0:00:16.7]} 57... Kg8 {[%clk 0:00:16.3]}
58. Kg3 {[%clk 0:00:17.2]} 58... Rh5 {[%clk 0:00:16.7]} 59. Kg4 {[%clk
0:00:17.5]} 59... Rf5 {[%clk 0:00:17]} 60. Qe6+ {[%clk 0:00:17.6]} 60... Kg7
{[%clk 0:00:17.6]} 61. Qd7+ {[%clk 0:00:17.6]} 61... Kg8 {[%clk 0:00:18.3]} 62.
Qe7 {[%clk 0:00:17.6]} 62... Rh5 {[%clk 0:00:18.6]} 63. Qe8+ {[%clk 0:00:17.2]}
63... Kg7 {[%clk 0:00:18.6]} 64. Kf4 {[%clk 0:00:17]} 64... Rf5+ {[%clk
0:00:18.4]} 65. Ke4 {[%clk 0:00:16.5]} 65... Kh7 {[%clk 0:00:19]} 66. Qe7+
{[%clk 0:00:16.6]} 66... Kg8 {[%clk 0:00:19.4]} 67. Qd8+ {[%clk 0:00:16.5]}
67... Kg7 {[%clk 0:00:19.5]} 68. Qe7+ {[%clk 0:00:16.9]} 68... Kg8 {[%clk
0:00:19.9]} 69. Qe8+ {[%clk 0:00:17.3]} 69... Kg7 {[%clk 0:00:20]} 70. Qe7+
{[%clk 0:00:17.8]} 70... Kg8 {[%clk 0:00:20.5]} 1/2-1/2

[Event "Early-Titled-Tuesday-Blitz-March-05-2024"]
[Site "Chess.com"]
[Date "2024.03.05"]
[Round "1"]
[White "Andrey_Klymchuk"]
[Black "ARMQUEEN"]
[Result "1-0"]
[WhiteElo "2708"]
[BlackElo "2409"]
[TimeControl "180+1"]
[EndTime "8:08:19 PST"]
[Termination "Andrey_Klymchuk won on time"]

1. e4 {[%clk 0:03:00.9]} 1... c5 {[%clk 0:02:56.3]} 2. Nf3 {[%clk 0:02:58.7]}
2... Nc6 {[%clk 0:02:56.2]} 3. Nc3 {[%clk 0:02:58.4]} 3... g6 {[%clk 0:02:55.6]}
4. d4 {[%clk 0:02:58.4]} 4... cxd4 {[%clk 0:02:55.7]} 5. Nxd4 {[%clk 0:02:59.3]}
5... Bg7 {[%clk 0:02:55.1]} 6. Be3 {[%clk 0:02:59.9]} 6... Nf6 {[%clk
0:02:52.4]} 7. Nxc6 {[%clk 0:03:00.1]} 7... bxc6 {[%clk 0:02:52.1]} 8. e5 {[%clk
0:03:00.3]} 8... Ng8 {[%clk 0:02:50]} 9. f4 {[%clk 0:02:59.7]} 9... Nh6 {[%clk
0:02:44.3]} 10. h3 {[%clk 0:02:57.8]} 10... Rb8 {[%clk 0:02:38.5]} 11. Bc4
{[%clk 0:02:56]} 11... O-O {[%clk 0:02:33.4]} 12. Bb3 {[%clk 0:02:53.9]} 12...
d5 {[%clk 0:02:29.6]} 13. Bxa7 {[%clk 0:02:49.2]} 13... Ra8 {[%clk 0:02:28.8]}
14. Bf2 {[%clk 0:02:44.3]} 14... f6 {[%clk 0:02:22]} 15. exf6 {[%clk 0:02:43.2]}
15... Bxf6 {[%clk 0:02:17]} 16. O-O {[%clk 0:02:24.9]} 16... Bg7 {[%clk
0:02:15.5]} 17. Nxd5 {[%clk 0:02:17.2]} 17... Kh8 {[%clk 0:02:10.5]} 18. Nb6
{[%clk 0:02:16.4]} 18... Qxd1 {[%clk 0:02:03.8]} 19. Raxd1 {[%clk 0:02:17.3]}
19... Rb8 {[%clk 0:02:02.8]} 20. Nxc8 {[%clk 0:02:15.2]} 20... Rbxc8 {[%clk
0:02:02.2]} 21. Bd4 {[%clk 0:02:03.7]} 21... Nf5 {[%clk 0:01:47.4]} 22. Bxg7+
{[%clk 0:02:01.9]} 22... Kxg7 {[%clk 0:01:48.3]} 23. Rfe1 {[%clk 0:02:00.6]}
23... Rc7 {[%clk 0:01:46.8]} 24. Be6 {[%clk 0:01:54.7]} 24... Nd6 {[%clk
0:01:44.1]} 25. g3 {[%clk 0:01:52.2]} 25... Rb7 {[%clk 0:01:41.3]} 26. b3 {[%clk
0:01:51.8]} 26... Ra7 {[%clk 0:01:40.5]} 27. a4 {[%clk 0:01:51.7]} 27... h5
{[%clk 0:01:32.9]} 28. h4 {[%clk 0:01:51.9]} 28... Kf6 {[%clk 0:01:24.7]} 29.
Bh3 {[%clk 0:01:50.7]} 29... Nf5 {[%clk 0:01:24.4]} 30. Kf2 {[%clk 0:01:48.5]}
30... Nd6 {[%clk 0:01:22.4]} 31. Re5 {[%clk 0:01:46.1]} 31... Rb8 {[%clk
0:01:21.9]} 32. Rde1 {[%clk 0:01:41.9]} 32... Rb4 {[%clk 0:01:18.6]} 33. Bf1
{[%clk 0:01:36.2]} 33... Rc7 {[%clk 0:01:14.5]} 34. Bd3 {[%clk 0:01:35.2]} 34...
Kf7 {[%clk 0:01:05.4]} 35. Rc5 {[%clk 0:01:31.6]} 35... Nb7 {[%clk 0:00:49]} 36.
Rg5 {[%clk 0:01:31]} 36... c5 {[%clk 0:00:43.6]} 37. Bc4+ {[%clk 0:01:24.9]}
37... Rxc4 {[%clk 0:00:36.7]} 38. bxc4 {[%clk 0:01:24.4]} 38... Nd6 {[%clk
0:00:36.9]} 39. Ree5 {[%clk 0:01:20.5]} 39... Ra7 {[%clk 0:00:35.6]} 40. Kg2
{[%clk 0:01:17.5]} 40... Rxa4 {[%clk 0:00:35.4]} 41. Rxc5 {[%clk 0:01:17.3]}
41... Ne4 {[%clk 0:00:35.7]} 42. f5 {[%clk 0:01:10]} 42... Nxg5 {[%clk
0:00:24.7]} 43. fxg6+ {[%clk 0:01:10]} 43... Kxg6 {[%clk 0:00:23.8]} 44. Rxg5+
{[%clk 0:01:10.7]} 44... Kh6 {[%clk 0:00:22.7]} 45. Rc5 {[%clk 0:01:08.8]} 45...
Ra2 {[%clk 0:00:22.6]} 46. Rc6+ {[%clk 0:01:03.3]} 46... Kg7 {[%clk 0:00:20.9]}
47. Kf3 {[%clk 0:01:03.7]} 47... Rxc2 {[%clk 0:00:20.6]} 48. c5 {[%clk
0:01:03.1]} 48... Rc4 {[%clk 0:00:15.2]} 49. Rc8 {[%clk 0:01:02.9]} 49... Kf7
{[%clk 0:00:14.6]} 50. c6 {[%clk 0:01:03.2]} 50... Ke6 {[%clk 0:00:14.3]} 51. c7
{[%clk 0:01:01.3]} 51... Kd7 {[%clk 0:00:12.3]} 52. Rh8 {[%clk 0:01:01]} 52...
Rxc7 {[%clk 0:00:10]} 53. Rxh5 {[%clk 0:01:00.9]} 53... Ke6 {[%clk 0:00:10.3]}
54. Rh8 {[%clk 0:00:59.3]} 54... Kf6 {[%clk 0:00:10.2]} 55. Kg4 {[%clk
0:00:52.4]} 55... Rc4+ {[%clk 0:00:09.7]} 56. Kh3 {[%clk 0:00:50.9]} 56... e5
{[%clk 0:00:09.8]} 57. Re8 {[%clk 0:00:47.9]} 57... Ra4 {[%clk 0:00:05.4]} 58.
Rg8 {[%clk 0:00:40]} 58... Kf5 {[%clk 0:00:04.3]} 59. g4+ {[%clk 0:00:36.8]}
59... Kf4 {[%clk 0:00:04.2]} 60. Rf8+ {[%clk 0:00:37.2]} 60... Ke3 {[%clk
0:00:03.4]} 61. h5 {[%clk 0:00:37.7]} 61... e4 {[%clk 0:00:03.3]} 62. g5 {[%clk
0:00:37.4]} 62... Ke2 {[%clk 0:00:01.8]} 63. g6 {[%clk 0:00:37.5]} 63... e3
{[%clk 0:00:02.2]} 64. g7 {[%clk 0:00:36.8]} 64... Ke1 {[%clk 0:00:02]} 65. g8=Q
{[%clk 0:00:36.5]} 65... e2 {[%clk 0:00:02.9]} 66. Qg3+ {[%clk 0:00:36.5]} 66...
Kd1 {[%clk 0:00:03]} 67. Rd8+ {[%clk 0:00:36.7]} 67... Kc1 {[%clk 0:00:02]} 68.
Qe1+ {[%clk 0:00:36.4]} 68... Kb2 {[%clk 0:00:01.3]} 69. Qxe2+ {[%clk
0:00:36.6]} 1-0

[Event "Early-Titled-Tuesday-Blitz-March-05-2024"]
[Site "Chess.com"]
[Date "2024.03.05"]
[Round "1"]
[White "TitarovVasiliYouTube"]
[Black "Antipov_Mikhail_Al"]
[Result "1/2-1/2"]
[WhiteElo "2510"]
[BlackElo "2938"]
[TimeControl "180+1"]
[EndTime "8:08:20 PST"]
[Termination "Game drawn by repetition"]

1. e4 {[%clk 0:03:00.9]} 1... e5 {[%clk 0:02:53.9]} 2. Nf3 {[%clk 0:03:00.1]}
2... Nc6 {[%clk 0:02:52.5]} 3. Bb5 {[%clk 0:02:58.3]} 3... Nf6 {[%clk
0:02:50.9]} 4. O-O {[%clk 0:02:56.4]} 4... Nxe4 {[%clk 0:02:49.5]} 5. Re1 {[%clk
0:02:56.5]} 5... Nd6 {[%clk 0:02:48.7]} 6. Nxe5 {[%clk 0:02:56.8]} 6... Be7
{[%clk 0:02:48.2]} 7. Bf1 {[%clk 0:02:52.5]} 7... Nxe5 {[%clk 0:02:46.5]} 8.
Rxe5 {[%clk 0:02:53.4]} 8... O-O {[%clk 0:02:45.8]} 9. d4 {[%clk 0:02:53.6]}
9... Bf6 {[%clk 0:02:41.1]} 10. Re1 {[%clk 0:02:53.3]} 10... Re8 {[%clk
0:02:37.4]} 11. c3 {[%clk 0:02:52.2]} 11... Rxe1 {[%clk 0:02:34.6]} 12. Qxe1
{[%clk 0:02:53.1]} 12... Ne8 {[%clk 0:02:32.4]} 13. Bf4 {[%clk 0:02:49.9]} 13...
d5 {[%clk 0:02:30.5]} 14. Nd2 {[%clk 0:02:49.8]} 14... c6 {[%clk 0:02:26.5]} 15.
Bd3 {[%clk 0:02:45.8]} 15... g6 {[%clk 0:02:11.1]} 16. Nf3 {[%clk 0:02:35.1]}
16... Ng7 {[%clk 0:02:01]} 17. Ne5 {[%clk 0:02:32.2]} 17... Bf5 {[%clk
0:01:58.5]} 18. Qe2 {[%clk 0:02:29.2]} 18... Bxd3 {[%clk 0:01:57.2]} 19. Qxd3
{[%clk 0:02:30.1]} 19... Qe7 {[%clk 0:01:47.8]} 20. Re1 {[%clk 0:02:25.4]} 20...
Re8 {[%clk 0:01:48]} 21. h3 {[%clk 0:02:22.5]} 21... Qd8 {[%clk 0:01:46.6]} 22.
Nf3 {[%clk 0:02:02.6]} 22... Rxe1+ {[%clk 0:01:41.5]} 23. Nxe1 {[%clk
0:02:03.5]} 23... Ne6 {[%clk 0:01:42.1]} 24. Bg3 {[%clk 0:02:01.5]} 24... Bg7
{[%clk 0:01:36.4]} 25. Nf3 {[%clk 0:01:59.1]} 25... f6 {[%clk 0:01:36.7]} 26.
Qe2 {[%clk 0:01:58.7]} 26... Kf7 {[%clk 0:01:36.5]} 27. h4 {[%clk 0:01:58.6]}
27... h5 {[%clk 0:01:32.2]} 28. Ne1 {[%clk 0:01:52.4]} 28... f5 {[%clk 0:01:16]}
29. Nd3 {[%clk 0:01:49.9]} 29... Bf6 {[%clk 0:01:16.3]} 30. Ne5+ {[%clk
0:01:45.6]} 30... Bxe5 {[%clk 0:01:15]} 31. Qxe5 {[%clk 0:01:46.5]} 31... a6
{[%clk 0:01:11.8]} 32. f3 {[%clk 0:01:42.9]} 32... Ng7 {[%clk 0:01:00.6]} 33.
Bf2 {[%clk 0:01:17.7]} 33... Ne8 {[%clk 0:00:53.9]} 34. Qh8 {[%clk 0:01:15.8]}
34... Qe7 {[%clk 0:00:44.7]} 35. Qh7+ {[%clk 0:00:54.4]} 35... Ng7 {[%clk
0:00:43.6]} 36. Qh8 {[%clk 0:00:54.2]} 36... Qe8 {[%clk 0:00:35.7]} 37. Qh7
{[%clk 0:00:39.1]} 37... a5 {[%clk 0:00:34.7]} 38. Bg3 {[%clk 0:00:36.2]} 38...
Qe3+ {[%clk 0:00:34.7]} 39. Bf2 {[%clk 0:00:31.8]} 39... Qc1+ {[%clk 0:00:33.9]}
40. Kh2 {[%clk 0:00:32.1]} 40... a4 {[%clk 0:00:29.2]} 41. Qh8 {[%clk
0:00:25.3]} 41... a3 {[%clk 0:00:23.2]} 42. bxa3 {[%clk 0:00:24.7]} 42... Qxc3
{[%clk 0:00:23.3]} 43. Qb8 {[%clk 0:00:20.2]} 43... Qb2 {[%clk 0:00:23.7]} 44.
Qc7+ {[%clk 0:00:20.2]} 44... Kg8 {[%clk 0:00:24.2]} 45. Bg3 {[%clk 0:00:17.3]}
45... Qxd4 {[%clk 0:00:19.8]} 46. Be5 {[%clk 0:00:16.7]} 46... Qxh4+ {[%clk
0:00:20.3]} 47. Kg1 {[%clk 0:00:17.3]} 47... Ne6 {[%clk 0:00:19.8]} 48. Qc8+
{[%clk 0:00:11.8]} 48... Kf7 {[%clk 0:00:19.9]} 49. Qxb7+ {[%clk 0:00:10.4]}
49... Qe7 {[%clk 0:00:19.5]} 50. Qxc6 {[%clk 0:00:09.3]} 50... Qxa3 {[%clk
0:00:17.4]} 51. Qxd5 {[%clk 0:00:08.9]} 51... Qa7+ {[%clk 0:00:17.3]} 52. Kh2
{[%clk 0:00:08.4]} 52... Qe7 {[%clk 0:00:17.6]} 53. Bd6 {[%clk 0:00:08]} 53...
Qh4+ {[%clk 0:00:17.8]} 54. Kg1 {[%clk 0:00:07.6]} 54... Qe1+ {[%clk 0:00:17.8]}
55. Kh2 {[%clk 0:00:08.1]} 55... h4 {[%clk 0:00:17.6]} 56. Be5 {[%clk
0:00:06.3]} 56... f4 {[%clk 0:00:10.6]} 57. Qd7+ {[%clk 0:00:06.6]} 57... Kf8
{[%clk 0:00:11]} 58. Qxe6 {[%clk 0:00:07.5]} 58... Qg3+ {[%clk 0:00:11.2]} 59.
Kg1 {[%clk 0:00:07.8]} 59... Qe1+ {[%clk 0:00:12.1]} 60. Kh2 {[%clk 0:00:08.4]}
60... Qg3+ {[%clk 0:00:13]} 61. Kg1 {[%clk 0:00:08.9]} 61... Qe1+ {[%clk
0:00:13.9]} 62. Kh2 {[%clk 0:00:09.3]} 1/2-1/2